fUSD/lending_fUSD_20240611
["ID","MTS","AMOUNT","RATE_DAILY","PERIOD"]
[329125624,1718124664736,-151.0,0.00022054,7]
[329125625,1718124664749,-1233.09,0.00022054,2]
[329125626,1718124664759,-500.0,0.00022054,2]
[329125627,1718124664770,-500.0,0.00022054,2]
[329125628,1718124664780,-500.0,0.00022054,2]
[329125629,1718124664791,-500.0,0.00022054,2]
[329125630,1718124664801,-500.0,0.00022054,2]
[329125631,1718124664812,-155.812296,0.00022054,7]
[329125632,1718124664822,-155.812296,0.00022054,7]
[329125633,1718124664832,-822.35,0.00022054,2]
[329125634,1718124664842,-612.24,0.00022054,2]
[329125635,1718124664853,-500.0,0.00022054,2]
[329125636,1718124664863,-384.49772982,0.00022054,2]
[329125637,1718124664873,-398.07,0.00022054,2]
[329125638,1718124664884,-500.0,0.00022054,2]
[329125639,1718124664894,-964.66,0.00022054,2]
[329125640,1718124664904,-1654.35,0.00022054,2]
[329125641,1718124664914,-500.0,0.00022054,2]
[329125642,1718124664924,-522.13,0.00022054,2]
[329125643,1718124664934,-500.0,0.00022054,2]
[329125644,1718124664945,-304.57317419,0.00022054,2]
[329125645,1718124664955,-500.0,0.00022054,2]
[329125646,1718124664966,-1783.76,0.00022054,2]
[329125647,1718124664976,-500.0,0.00022054,2]
[329125648,1718124664987,-533.05,0.00022054,2]
[329125649,1718124665006,-1138.03,0.00022054,2]
[329125650,1718124665017,-500.0,0.00022054,2]
[329125651,1718124665027,-500.0,0.00022054,2]
[329125652,1718124665037,-500.0,0.00022054,2]
[329125653,1718124665048,-964.62,0.00022054,2]
[329125654,1718124665058,-1243.61,0.00022054,2]
[329125655,1718124665069,-500.0,0.00022054,2]
[329125656,1718124665080,-1060.44,0.00022054,2]
[329125657,1718124665090,-503.38,0.00022054,2]
[329125658,1718124665100,-602.92,0.00022054,2]
[329125659,1718124665110,-10684.08,0.00022054,2]
[329125660,1718124665120,-500.0,0.00022054,2]
[329125661,1718124665131,-500.0,0.00022054,2]
[329125662,1718124665141,-500.0,0.00022054,2]
[329125663,1718124665152,-500.0,0.00022054,2]
[329125664,1718124665163,-722.21,0.00022054,2]
[329125665,1718124665184,-500.0,0.00022054,2]
[329125666,1718124665194,-500.0,0.00022054,2]
[329125667,1718124665203,-582.02,0.00022054,2]
[329125668,1718124665215,-500.0,0.00022054,2]
[329125669,1718124665225,-631.93,0.00022054,2]
[329125670,1718124665236,-1032.25,0.00022054,2]
[329125671,1718124665249,-2944.95,0.00022054,2]
[329125672,1718124665260,-500.0,0.00022054,2]
[329125673,1718124665270,-3784.79,0.00022054,2]
[329125674,1718124665280,-1519.59,0.00022054,2]
[329125675,1718124665290,-733.09,0.00022054,2]
[329125676,1718124665300,-170.018284,0.00022054,7]
[329125677,1718124665311,-170.018284,0.00022054,7]
[329125678,1718124665321,-700.85,0.00022054,2]
[329125679,1718124665331,-500.0,0.00022054,2]
[329125680,1718124665342,-500.0,0.00022054,2]
[329125681,1718124665352,-151.0,0.00022054,7]
[329125682,1718124665363,-151.0,0.00022054,7]
[329125683,1718124665373,-170.018284,0.00022054,7]
[329125684,1718124665383,-170.018284,0.00022054,7]
[329125685,1718124665394,-500.0,0.00022054,2]
[329125686,1718124665404,-3851.6,0.00022054,2]
[329125687,1718124665414,-500.0,0.00022054,2]
[329125688,1718124665426,-2792.77,0.00022054,2]
[329125689,1718124665440,-500.0,0.00022054,2]
[329125690,1718124665451,-500.0,0.00022054,2]
[329125691,1718124665461,-604.85632232,0.00022054,2]
[329125692,1718124665473,-764.87,0.00022054,2]
[329125693,1718124665483,-500.0,0.00022054,2]
[329125694,1718124665496,-222.74133849,0.00022054,2]
[329125695,1718124665506,-1023.14,0.00022054,2]
[329125696,1718124665518,-1504.71,0.00022054,2]
[329125697,1718124665528,-527.86,0.00022054,2]
[329125698,1718124665538,-1400.32,0.00022054,2]
[329125699,1718124665548,-500.0,0.00022054,2]
[329125700,1718124665559,-1228.73,0.00022054,2]
[329125701,1718124665570,-2723.51,0.00022054,2]
[329125702,1718124665581,-1006.4,0.00022054,2]
[329125703,1718124665591,-2504.63,0.00022054,2]
[329125704,1718124665603,-500.0,0.00022054,2]
[329125705,1718124665614,-500.0,0.00022054,2]
[329125706,1718124665625,-500.0,0.00022054,2]
[329125707,1718124665637,-1910.46,0.00022054,2]
[329125708,1718124665647,-828.69,0.00022054,2]
[329125709,1718124665657,-500.0,0.00022054,2]
[329125710,1718124665667,-1256.84,0.00022054,2]
[329125711,1718124665678,-775.1,0.00022054,2]
[329125712,1718124665688,-2787.65,0.00022054,2]
[329125713,1718124665698,-1274.67,0.00022054,2]
[329125714,1718124665709,-1798.27,0.00022054,2]
[329125715,1718124665719,-507.99,0.00022054,2]
[329125716,1718124665729,-4545.83,0.00022054,2]
[329125717,1718124665742,-2345.0,0.00022054,2]
[329125718,1718124665753,-642.02,0.00022054,2]
[329125719,1718124665763,-500.0,0.00022054,2]
[329125720,1718124665773,-1827.64,0.00022054,2]
[329125721,1718124665783,-1233.67,0.00022054,2]
[329125722,1718124665793,-627.2,0.00022054,2]
[329125723,1718124665803,-500.0,0.00022054,2]
[329125724,1718124665813,-39096.68,0.00022054,2]
[329125725,1718124665823,-500.0,0.00022054,2]
[329125726,1718124665833,-7496.56,0.00022054,2]
[329125727,1718124665843,-1014.22,0.00022054,2]
[329125728,1718124665853,-1050.97,0.00022054,2]
[329125729,1718124665863,-805.68,0.00022054,2]
[329125730,1718124665873,-1965.84,0.00022054,2]
[329125731,1718124665884,-463.22190618,0.00022054,2]
[329125732,1718124665893,-500.0,0.00022054,2]
[329125733,1718124665904,-500.0,0.00022054,2]
[329125734,1718124665914,-536.12366588,0.00022054,2]
[329125735,1718124665925,-7414.38,0.00022054,2]
[329125736,1718124665934,-500.0,0.00022054,2]
[329125737,1718124665944,-1578.93,0.00022054,2]
[329125738,1718124665955,-527.4,0.00022054,2]
[329125739,1718124665965,-558.67,0.00022054,2]
[329125740,1718124665975,-2946.23,0.00022054,2]
[329125741,1718124665985,-592.7458493,0.00022054,2]
[329125742,1718124665998,-6135.26,0.00022054,2]
[329125743,1718124666008,-151.0,0.00022054,7]
[329125744,1718124666018,-500.0,0.00022054,2]
[329125745,1718124666028,-151.0,0.00022054,7]
[329125746,1718124666038,-151.0,0.00022054,7]
[329125747,1718124666049,-500.0,0.00022054,2]
[329125748,1718124666059,-2264.1,0.00022054,2]
[329125749,1718124666069,-383.44445368,0.00022054,2]
[329125750,1718124666080,-721.94,0.00022054,2]
[329125751,1718124666090,-500.0,0.00022054,2]
[329125752,1718124666101,-250.0,0.00022054,2]
[329125753,1718124666111,-1719.18,0.00022054,2]
[329125754,1718124666121,-534.86434734,0.00022054,2]
[329125755,1718124666131,-612.07643356,0.00022054,2]
[329125756,1718124666141,-14150.14,0.00022054,2]
[329125757,1718124666153,-1324.72,0.00022054,2]
[329125758,1718124666163,-2079.59,0.00022054,2]
[329125759,1718124666179,-500.0,0.00022054,2]
[329125760,1718124666191,-2128.59,0.00022054,2]
[329125761,1718124666201,-580.63,0.00022054,2]
[329125762,1718124666211,-2821.82,0.00022054,2]
[329125763,1718124666221,-2126.12,0.00022054,2]
[329125764,1718124666232,-500.0,0.00022054,2]
[329125765,1718124666242,-1095.85,0.00022054,2]
[329125766,1718124666253,-512.99,0.00022054,2]
[329125767,1718124666263,-1607.15,0.00022054,2]
[329125768,1718124666273,-1139.45,0.00022054,2]
[329125769,1718124666283,-3390.6,0.00022054,2]
[329125770,1718124666294,-500.0,0.00022054,2]
[329125771,1718124666303,-847.5,0.00022054,2]
[329125772,1718124666313,-500.0,0.00022054,2]
[329125773,1718124666324,-151.0,0.00022054,7]
[329125774,1718124666334,-151.0,0.00022054,7]
[329125775,1718124666344,-151.0,0.00022054,7]
[329125776,1718124666355,-500.0,0.00022054,2]
[329125777,1718124666365,-2950.84,0.00022054,2]
[329125778,1718124666375,-500.0,0.00022054,2]
[329125779,1718124666384,-2432.8,0.00022054,2]
[329125780,1718124666394,-151.0,0.00022054,7]
[329125781,1718124666404,-500.0,0.00022054,2]
[329125782,1718124666414,-239.414902,0.00022054,7]
[329125783,1718124666430,-8686.42,0.00022054,2]
[329125784,1718124666441,-4638.06,0.00022054,2]
[329125785,1718124666451,-500.0,0.00022054,2]
[329125786,1718124666462,-1989.29,0.00022054,2]
[329125787,1718124666475,-500.0,0.00022054,2]
[329125788,1718124666486,-500.0,0.00022054,2]
[329125789,1718124666498,-1013.71,0.00022054,2]
[329125790,1718124666510,-1448.12,0.00022054,2]
[329125791,1718124666521,-500.0,0.00022054,2]
[329125792,1718124666531,-500.0,0.00022054,2]
[329125793,1718124666542,-618.48,0.00022054,2]
[329125794,1718124666552,-1226.28,0.00022054,2]
[329125795,1718124666562,-2782.92,0.00022054,2]
[329125796,1718124666573,-4673.82,0.00022054,2]
[329125797,1718124666583,-3280.77,0.00022054,2]
[329125798,1718124666593,-500.0,0.00022054,2]
[329125799,1718124666604,-907.6,0.00022054,2]
[329125800,1718124666614,-500.0,0.00022054,2]
[329125801,1718124666625,-500.0,0.00022054,2]
[329125802,1718124666636,-500.0,0.00022054,2]
[329125803,1718124666647,-2832.97,0.00022054,2]
[329125804,1718124666658,-1587.03,0.00022054,2]
[329125805,1718124666668,-500.0,0.00022054,2]
[329125806,1718124666678,-2615.8,0.00022054,2]
[329125807,1718124666688,-5856.15,0.00022054,2]
[329125808,1718124666699,-2415.87,0.00022054,2]
[329125809,1718124666710,-500.0,0.00022054,2]
[329125810,1718124666721,-3192.79,0.00022054,2]
[329125811,1718124666731,-500.0,0.00022054,2]
[329125812,1718124666742,-1584.45,0.00022054,2]
[329125813,1718124666753,-500.0,0.00022054,2]
[329125814,1718124666764,-770.75,0.00022054,2]
[329125815,1718124666775,-1877.82,0.00022054,2]
[329125816,1718124666785,-1235.38,0.00022054,2]
[329125817,1718124666796,-1868.15,0.00022054,2]
[329125818,1718124666806,-500.0,0.00022054,2]
[329125819,1718124666817,-500.0,0.00022054,2]
[329125820,1718124666827,-500.0,0.00022054,2]
[329125821,1718124666838,-4057.37,0.00022054,2]
[329125822,1718124666849,-1760.52,0.00022054,2]
[329125823,1718124666859,-1972.67,0.00022054,2]
[329125824,1718124666870,-2489.29,0.00022054,2]
[329125825,1718124666880,-151.0,0.00022054,7]
[329125826,1718124666891,-320.704388,0.00022054,7]
[329125827,1718124666901,-151.0,0.00022054,7]
[329125828,1718124666912,-320.704388,0.00022054,7]
[329125829,1718124666922,-500.0,0.00022054,2]
[329125830,1718124666933,-151.0,0.00022054,7]
[329125831,1718124666943,-320.704388,0.00022054,7]
[329125832,1718124666954,-500.0,0.00022054,2]
[329125833,1718124666964,-500.0,0.00022054,2]
[329125834,1718124666975,-3118.96,0.00022054,2]
[329125835,1718124666985,-28966.38,0.00022054,2]
[329125836,1718124666996,-3609.07,0.00022054,2]
[329125837,1718124667007,-500.0,0.00022054,2]
[329125838,1718124667017,-500.0,0.00022054,2]
[329125839,1718124667027,-500.0,0.00022054,2]
[329125840,1718124667038,-1421.12,0.00022054,2]
[329125841,1718124667049,-3979.22,0.00022054,2]
[329125842,1718124667059,-151.0,0.00022054,7]
[329125843,1718124667070,-4148.95,0.00022054,2]
[329125844,1718124667081,-151.0,0.00022054,7]
[329125845,1718124667091,-1086.44,0.00022054,2]
[329125846,1718124667101,-500.0,0.00022054,2]
[329125847,1718124667112,-151.0,0.00022054,7]
[329125848,1718124667122,-320.704388,0.00022054,7]
[329125849,1718124667134,-320.704388,0.00022054,7]
[329125850,1718124667144,-500.0,0.00022054,2]
[329125851,1718124667155,-1183.14,0.00022054,2]
[329125852,1718124667165,-320.704388,0.00022054,7]
[329125853,1718124667184,-500.0,0.00022054,2]
[329125854,1718124667195,-282.06497396,0.00022054,2]
[329125855,1718124667206,-500.0,0.00022054,2]
[329125856,1718124667216,-1231.46,0.00022054,2]
[329125857,1718124667226,-14984.91,0.00022054,2]
[329125858,1718124667237,-518.61,0.00022054,2]
[329125859,1718124667248,-500.0,0.00022054,2]
[329125860,1718124667258,-7014.76,0.00022054,2]
[329125861,1718124667269,-527.92,0.00022054,2]
[329125862,1718124667281,-545.06,0.00022054,2]
[329125863,1718124667291,-3436.73,0.00022054,2]
[329125864,1718124667302,-4057.37,0.00022054,2]
[329125865,1718124667312,-599.22,0.00022054,2]
[329125866,1718124667324,-500.0,0.00022054,2]
[329125867,1718124667335,-500.0,0.00022054,2]
[329125868,1718124667346,-151.0,0.00022054,7]
[329125869,1718124667357,-151.0,0.00022054,7]
[329125870,1718124667367,-151.0,0.00022054,7]
[329125871,1718124667378,-4129.63,0.00022054,2]
[329125872,1718124667389,-1110.10460169,0.00022054,2]
[329125873,1718124667423,-580.53539831,0.00022054,2]
[329125874,1718124667434,-242.87760171,0.00022054,2]
[329125875,1718124675201,360.20035804,8.083e-05,2]
[329125876,1718124675225,2191.37829171,8.083e-05,2]
[329125877,1718124678530,328.64308438,0.00026,30]
[329125881,1718125630164,-512.79836852,0.00012924,2]
[329125882,1718125630202,-477.90571448,0.00012924,2]
[329125883,1718125630228,-1835.81864139,0.00012989,2]
[329125884,1718125632481,-2067.77345717,0.00012989,2]
[329125885,1718125745129,-410.83715221,0.00012989,2]
[329125886,1718125745156,-522.69878769,0.00013053,2]
[329125887,1718125745183,-664.0,0.00013053,2]
[329125888,1718125745209,-897.94822504,0.00013054,2]
[329125889,1718125745234,-1760.85567835,0.0001306,2]
[329125890,1718125745260,-346.28,0.00018205,2]
[329125891,1718125745285,-150.99,0.00019452,2]
[329125892,1718125745308,-200.0,0.00019913,2]
[329125893,1718125745333,-21504.91605074,0.00019956,2]
[329125894,1718125751239,-2395.08394926,0.00019956,2]
[329125895,1718125751297,-500.0,0.00019966,2]
[329125896,1718125751347,-452.19,0.00019996,2]
[329125897,1718125751371,-262.96555812,0.00020018,2]
[329125898,1718125751396,-226.58,0.00020019,2]
[329125899,1718125751422,-226.7178388,0.000201,2]
[329125900,1718125751459,-250.0,0.0002012,2]
[329125901,1718125751497,-200.0,0.00020123,2]
[329125902,1718125751522,-1395.66,0.00020177,2]
[329125903,1718125751564,-172.49,0.0002022,2]
[329125904,1718125751625,-250.0,0.00020363,2]
[329125905,1718125751730,-346.28,0.00020469,2]
[329125906,1718125751829,-400.0,0.000205,2]
[329125907,1718125751925,-168.82,0.00020623,2]
[329125908,1718125751977,-175.48,0.00021052,2]
[329125909,1718125752003,-925.14861312,0.00021292,2]
[329125910,1718125752027,-200.8,0.00021641,2]
[329125911,1718125752052,-3743.88,0.00021646,2]
[329125912,1718125752078,-1012.0,0.000218,2]
[329125913,1718125752101,-300.0,0.00021817,2]
[329125914,1718125752124,-12613.8661,0.00021817,2]
[329125915,1718125752148,-453.2699,0.00021817,2]
[329125916,1718125752172,-7500.0,0.00021817,2]
[329125917,1718125752244,-211.6109,0.00021817,2]
[329125918,1718125752299,-192.66109184,0.00021817,2]
[329125919,1718125752323,-187.56162543,0.00021817,2]
[329125920,1718125752348,-686.85,0.00021907,3]
[329125921,1718125752372,-3685.9351781,0.00021915,2]
[329125922,1718125752396,-5049.8566397,0.00021915,7]
[329125923,1718125752419,-1277.45304415,0.00021915,2]
[329125924,1718125752444,-1000.0,0.00021915,2]
[329125925,1718125752466,-186.11592372,0.00021915,2]
[329125926,1718125752489,-268.79574159,0.00021915,2]
[329125927,1718125752512,-155.0,0.00021915,2]
[329125928,1718125752535,-659.69526598,0.00021915,2]
[329125929,1718125752559,-518.51321967,0.00021916,2]
[329125930,1718125752582,-380.0,0.00021916,2]
[329125931,1718125752614,-178.36989086,0.00021916,2]
[329125932,1718125752640,-509.96781962,0.00021917,2]
[329125933,1718125752675,-500.0,0.00021917,2]
[329125934,1718125752705,-500.0,0.00021917,2]
[329125935,1718125752762,-500.0,0.00021917,2]
[329125936,1718125752788,-500.0,0.00021917,2]
[329125937,1718125752817,-500.0,0.00021917,2]
[329125938,1718125752844,-500.0,0.00021917,2]
[329125939,1718125752871,-500.0,0.00021917,2]
[329125940,1718125752899,-500.0,0.00021917,2]
[329125941,1718125752924,-500.0,0.00021917,2]
[329125942,1718125752954,-500.0,0.00021917,2]
[329125943,1718125752994,-507.20424391,0.00021917,2]
[329125944,1718125753067,-500.0,0.00021917,2]
[329125945,1718125753138,-500.0,0.00021917,2]
[329125946,1718125753216,-500.0,0.00021917,2]
[329125947,1718125753266,-500.0,0.00021917,2]
[329125948,1718125753318,-500.0,0.00021917,2]
[329125949,1718125753384,-500.0,0.00021917,2]
[329125950,1718125753456,-500.0,0.00021917,2]
[329125951,1718125753483,-621.43,0.00021917,2]
[329125952,1718125753509,-500.0,0.00021917,2]
[329125953,1718125753536,-500.0,0.00021917,2]
[329125954,1718125753567,-500.0,0.00021917,2]
[329125955,1718125753593,-538.72621878,0.00021917,2]
[329125956,1718125753629,-527.32,0.00021917,2]
[329125957,1718125753655,-500.0,0.00021917,2]
[329125958,1718125753681,-500.0,0.00021917,2]
[329125959,1718125753714,-664.03,0.00021917,2]
[329125960,1718125753739,-500.0,0.00021917,2]
[329125961,1718125753765,-500.0,0.00021917,2]
[329125962,1718125753790,-500.0,0.00021917,2]
[329125963,1718125753821,-500.0,0.00021917,2]
[329125964,1718125753847,-500.0,0.00021917,2]
[329125965,1718125753873,-500.0,0.00021917,2]
[329125966,1718125753900,-757.52,0.00021917,2]
[329125967,1718125753927,-500.0,0.00021917,2]
[329125968,1718125753957,-500.0,0.00021917,2]
[329125969,1718125753982,-500.0,0.00021917,2]
[329125970,1718125754008,-500.0,0.00021917,2]
[329125971,1718125754038,-500.0,0.00021917,2]
[329125972,1718125754092,-500.0,0.00021917,2]
[329125973,1718125754206,-500.0,0.00021917,2]
[329125974,1718125754259,-500.0,0.00021917,2]
[329125975,1718125754285,-500.0,0.00021917,2]
[329125976,1718125754313,-500.0,0.00021917,2]
[329125977,1718125754338,-500.0,0.00021917,2]
[329125978,1718125754364,-500.0,0.00021917,2]
[329125979,1718125754390,-500.0,0.00021917,2]
[329125980,1718125754416,-500.0,0.00021917,2]
[329125981,1718125754446,-721.55,0.00021917,2]
[329125982,1718125754471,-500.0,0.00021917,2]
[329125983,1718125754507,-636.74,0.00021917,2]
[329125984,1718125754544,-500.0,0.00021917,2]
[329125985,1718125754583,-530.58,0.00021917,2]
[329125986,1718125754627,-500.0,0.00021917,2]
[329125987,1718125754666,-510.47502839,0.00021917,2]
[329125988,1718125754704,-500.0,0.00021917,2]
[329125989,1718125754739,-500.0,0.00021917,2]
[329125990,1718125754769,-500.0,0.00021917,2]
[329125991,1718125754804,-500.0,0.00021917,2]
[329125992,1718125754839,-500.0,0.00021917,2]
[329125993,1718125754878,-500.0,0.00021917,2]
[329125994,1718125754909,-565.03,0.00021917,2]
[329125995,1718125754949,-500.0,0.00021917,2]
[329125996,1718125754980,-500.0,0.00021917,2]
[329125997,1718125755014,-500.0,0.00021917,2]
[329125998,1718125755043,-500.0,0.00021917,2]
[329125999,1718125755073,-500.0,0.00021917,2]
[329126000,1718125755107,-732.9,0.00021917,2]
[329126001,1718125755136,-500.0,0.00021917,2]
[329126002,1718125755166,-500.0,0.00021917,2]
[329126003,1718125755200,-500.0,0.00021917,2]
[329126004,1718125755229,-500.0,0.00021917,2]
[329126005,1718125755260,-500.0,0.00021917,2]
[329126006,1718125755302,-500.0,0.00021917,2]
[329126007,1718125755343,-500.0,0.00021917,2]
[329126008,1718125755380,-500.0,0.00021917,2]
[329126009,1718125755412,-500.0,0.00021917,2]
[329126010,1718125755448,-500.0,0.00021917,2]
[329126011,1718125755481,-500.0,0.00021917,2]
[329126012,1718125755518,-510.49425435,0.00021917,2]
[329126013,1718125755550,-500.0,0.00021917,2]
[329126014,1718125755584,-500.0,0.00021917,2]
[329126015,1718125755623,-500.0,0.00021917,2]
[329126016,1718125755658,-34.91574854,0.00021917,2]
[329126017,1718125766877,410.83715221,0.00012989,2]
[329126018,1718125771792,300.0,0.00027736,120]
[329126019,1718125774226,-262.96555812,0.00021915,2]
[329126020,1718125774249,-522.69878769,0.00021916,2]
[329126021,1718125774335,-465.08425146,0.00021917,2]
[329126022,1718125774386,-500.0,0.00021917,2]
[329126023,1718125774411,-816.63,0.00021917,2]
[329126024,1718125774457,-500.0,0.00021917,2]
[329126025,1718125774504,-500.0,0.00021917,2]
[329126026,1718125774574,-500.0,0.00021917,2]
[329126027,1718125774597,-500.0,0.00021917,2]
[329126028,1718125774629,-578.01875566,0.00021917,2]
[329126029,1718125774653,-500.0,0.00021917,2]
[329126030,1718125774677,-500.0,0.00021917,2]
[329126031,1718125774701,-729.68,0.00021917,2]
[329126032,1718125774724,-500.0,0.00021917,2]
[329126033,1718125774747,-500.0,0.00021917,2]
[329126034,1718125774770,-500.0,0.00021917,2]
[329126035,1718125774794,-500.0,0.00021917,2]
[329126036,1718125774820,-500.0,0.00021917,2]
[329126037,1718125774843,-502.75838647,0.00021917,2]
[329126038,1718125774867,-591.71,0.00021917,2]
[329126039,1718125774889,-500.0,0.00021917,2]
[329126040,1718125774914,-500.0,0.00021917,2]
[329126041,1718125774937,-511.09790935,0.00021917,2]
[329126042,1718125774963,-160.5861351,0.00021917,2]
[329126043,1718125774987,-500.0,0.00021917,2]
[329126044,1718125775010,-1091.51,0.00021917,2]
[329126045,1718125775036,-500.0,0.00021917,2]
[329126046,1718125775060,-500.0,0.00021917,2]
[329126047,1718125775083,-851.01,0.00021917,2]
[329126048,1718125775106,-568.16701712,0.00021917,2]
[329126049,1718125775129,-588.08,0.00021917,2]
[329126050,1718125775153,-500.0,0.00021917,2]
[329126051,1718125775176,-500.0,0.00021917,2]
[329126052,1718125775198,-512.39888493,0.00021917,2]
[329126053,1718125775221,-1220.98,0.00021917,2]
[329126054,1718125775244,-585.06,0.00021917,2]
[329126055,1718125775267,-500.0,0.00021917,2]
[329126056,1718125775289,-582.13163396,0.00021917,2]
[329126057,1718125775313,-500.0,0.00021917,2]
[329126058,1718125775334,-500.0,0.00021917,2]
[329126059,1718125775357,-1291.52,0.00021917,2]
[329126060,1718125775384,-500.0,0.00021917,2]
[329126061,1718125775408,-525.33,0.00021917,2]
[329126062,1718125775432,-798.87,0.00021917,2]
[329126063,1718125775457,-500.0,0.00021917,2]
[329126064,1718125775480,-697.81,0.00021917,2]
[329126065,1718125775504,-574.26,0.00021917,2]
[329126066,1718125775528,-500.0,0.00021917,2]
[329126067,1718125775551,-500.0,0.00021917,2]
[329126068,1718125775575,-503.58,0.00021917,2]
[329126069,1718125775597,-500.0,0.00021917,2]
[329126070,1718125775628,-500.0,0.00021917,2]
[329126071,1718125775652,-579.25,0.00021917,2]
[329126072,1718125775676,-500.0,0.00021917,2]
[329126073,1718125775699,-500.0,0.00021917,2]
[329126074,1718125775723,-605.74,0.00021917,2]
[329126075,1718125775747,-500.0,0.00021917,2]
[329126076,1718125775769,-500.0,0.00021917,2]
[329126077,1718125775791,-500.0,0.00021917,2]
[329126078,1718125775815,-500.0,0.00021917,2]
[329126079,1718125775900,-500.0,0.00021917,2]
[329126080,1718125775923,-500.0,0.00021917,2]
[329126081,1718125775946,-508.18,0.00021917,2]
[329126082,1718125775968,-500.0,0.00021917,2]
[329126083,1718125775992,-537.74,0.00021917,2]
[329126084,1718125776015,-500.0,0.00021917,2]
[329126085,1718125776038,-1459.48,0.00021917,2]
[329126086,1718125776060,-507.55772202,0.00021917,2]
[329126087,1718125776085,-1010.29,0.00021917,2]
[329126088,1718125776107,-514.1455354,0.00021917,2]
[329126089,1718125776130,-553.04,0.00021917,2]
[329126090,1718125776155,-1162.11,0.00021917,2]
[329126091,1718125776180,-500.0,0.00021917,2]
[329126092,1718125776205,-405.75462465,0.00021917,2]
[329126093,1718125789390,410.83715221,0.00012989,2]
[329126094,1718125807391,410.83715221,0.00012989,2]
[329126095,1718125827659,377.78463481,0.00012989,2]
[329126107,1718125832589,-300.0,0.00019725,2]
[329126108,1718125832600,-226.7178388,0.000201,2]
[329126109,1718125832612,-300.0,0.00021484,2]
[329126110,1718125832622,-55.61677642,0.00021817,2]
[329126111,1718125832643,-735.06296937,0.00021817,2]
[329126112,1718125832778,-1432.60164,0.00021817,2]
[329126113,1718125833013,-616.59989011,0.00021817,2]
[329126114,1718125833026,-599.46000008,0.00021817,2]
[329126115,1718125833039,-619.80362153,0.00021817,2]
[329126116,1718125833296,-977.03499773,0.00021817,2]
[329126117,1718125833309,-277.50880542,0.00021817,2]
[329126118,1718125833561,-421.55839924,0.00021817,2]
[329126119,1718125833573,-307.95460865,0.00021817,2]
[329126120,1718125833586,-1456.79829145,0.00021817,2]
[329126121,1718125833596,-7182.5534,0.00021817,2]
[329126122,1718125833607,-324.83144529,0.00021817,2]
[329126123,1718125833617,-3706.451,0.00021827,2]
[329126124,1718125833631,-262.96555812,0.00021916,2]
[329126125,1718125833649,-823.78,0.00021917,2]
[329126126,1718125833659,-509.55519295,0.00021917,2]
[329126127,1718125833670,-500.0,0.00021917,2]
[329126128,1718125833681,-1226.17,0.00021917,2]
[329126129,1718125833692,-1418.94,0.00021917,2]
[329126130,1718125833703,-502.93533408,0.00021917,2]
[329126131,1718125833714,-724.47,0.00021917,2]
[329126132,1718125833724,-650.26,0.00021917,2]
[329126133,1718125833735,-525.4627648,0.00021917,2]
[329126134,1718125833745,-500.0,0.00021917,2]
[329126135,1718125833756,-500.0,0.00021917,2]
[329126136,1718125833767,-500.0,0.00021917,2]
[329126137,1718125833780,-500.0,0.00021917,2]